Workbook

Sheet Sheet1
A1: 柳州职业技术学院2018届毕业生分专业统计表
A2: 校区 | B2: 二级学院 | C2: 专业名称 | D2: 毕业生数 | E2: 男生数 | F2: 女生数
A3: 官 塘 校 区 | B3: 机电工程学院 周老师 0772-3156176 1833672778@qq.com | C3: 数控技术 | D3: 151 | E3: 147 | F3: 4
C4: 数控设备应用与维护 | D4: 29 | E4: 27 | F4: 2
C5: 电气自动化技术 | D5: 108 | E5: 103 | F5: 5
C6: 供用电技术 | D6: 20 | E6: 19 | F6: 1
C7: 机电设备维修与管理 | D7: 62 | E7: 60 | F7: 2
C8: 工程机械运用与维护 | D8: =E8+F8 -> 51 | E8: 51 | F8: 0
C9: 机电一体化技术 | D9: 148 | E9: 147 | F9: 1
C10: 机械质量管理与检测技术 | D10: 18 | E10: 17 | F10: 1
C11: 焊接技术及自动化 | D11: 13 | E11: 13 | F11: 0
C12: 机械设计与制造 | D12: 105 | E12: 100 | F12: 5
C13: 模具设计与制造 | D13: 120 | E13: 111 | F13: 9
C14: 工业机器人技术 | D14: 30 | E14: 29 | F14: 1
C15: 小计 | D15: =SUM(D3:D14) -> 855 | E15: =SUM(E3:E14) -> 824 | F15: =SUM(F3:F14) -> 31
B16: 财经与物流管理学院 覃老师 0772-3155560 719775687@qq.com | C16: 会计电算化 | D16: 251 | E16: 34 | F16: =D16-E16 -> 217
C17: 会计电算化（涉外会计方向） | D17: 56 | E17: 5 | F17: 51
C18: 财务管理 | D18: 184 | E18: 23 | F18: 161
C19: 物流管理 | D19: 181 | E19: 91 | F19: 90
C20: 物流管理（国际物流方向） | D20: 44 | E20: 16 | F20: 28
C21: 小计 | D21: =SUM(D16:D20) -> 716 | E21: =SUM(E16:E20) -> 169 | F21: 547
A22: 社 湾 校 区 | B22: 电子信息工程学院 龙老师 0772-3155381 3234341582@qq.com | C22: 计算机网络技术 | D22: 68 | E22: 47 | F22: 21
C23: 软件技术 | D23: 91 | E23: 75 | F23: 16
C24: 软件技术（手机软件方向） | D24: 28 | E24: 24 | F24: 4
C25: 计算机应用技术 | D25: 126 | E25: 95 | F25: 31
C26: 通信技术(中兴通信技术) | D26: 113 | E26: 80 | F26: 33
C27: 计算机信息管理(企业IT技术方向) | D27: 41 | E27: 23 | F27: 18
C28: 楼宇智能化工程技术 | D28: 19 | E28: 19 | F28: 0
C29: 应用电子技术 | D29: 39 | E29: 36 | F29: 3
C30: 电子信息工程技术（中兴通讯云计算） | D30: 21 | E30: 16 | F30: 5
C31: 电子信息工程技术（物联网技术方向） | D31: 46 | E31: 36 | F31: 10
C32: 制冷与空调技术 | D32: 51 | E32: 49 | F32: 2
C33: 小计 | D33: =SUM(D22:D32) -> 643 | E33: =SUM(E22:E32) -> 500 | F33: =SUM(F22:F32) -> 143
B34: 环境与食品工程学院 陈老师 0772-3155201 279648208@qq.com | C34: 食品检测及管理 | D34: 77 | E34: 18 | F34: 59
C35: 环境监测与治理技术 | D35: 41 | E35: 12 | F35: 29
C36: 工业分析与检验 | D36: 7 | E36: 3 | F36: 4
C37: 农产品质量检测 | D37: 11 | E37: 5 | F37: 6
C38: 小计 | D38: =SUM(D34:D37) -> 136 | E38: =SUM(E34:E37) -> 38 | F38: =SUM(F34:F37) -> 98
B39: 贸易与旅游管理学院 夏老师 0772-3156327 531930338@qq.com | C39: 市场营销 | D39: 123 | E39: 62 | F39: 61
C40: 商务英语 | D40: 33 | E40: 2 | F40: 31
C41: 旅游管理 | D41: 30 | E41: 5 | F41: 25
C42: 连锁经营管理 | D42: 78 | E42: 26 | F42: 52
C43: 酒店管理 | D43: 92 | E43: 32 | F43: 60
C44: 航空服务 | D44: 68 | E44: 29 | F44: 39
C45: 国际经济与贸易 | D45: 49 | E45: 17 | F45: 32
C46: 电子商务 | D46: 158 | E46: 60 | F46: 98
C47: 小计 | D47: =SUM(D39:D46) -> 631 | E47: =SUM(E39:E46) -> 233 | F47: =SUM(F39:F46) -> 398
B48: 汽车工程学院 曾老师 0772-3156317 229594540@qq.com | C48: 汽车检测与维修技术 | D48: 239 | E48: 238 | F48: 1
C49: 汽车技术服务与营销 | D49: 93 | E49: 68 | F49: 25
C50: 汽车运用技术 | D50: 84 | E50: 83 | F50: 1
C51: 汽车电子技术 | D51: 63 | E51: 62 | F51: 1
C52: 小计 | D52: =SUM(D48:D51) -> 479 | E52: =SUM(E48:E51) -> 451 | F52: =SUM(F48:F51) -> 28
B53: 艺术设计学院 陈老师 0772-3156536 2151966550@qq.com | C53: 服装设计 | D53: 71 | E53: 14 | F53: =D53-E53 -> 57
C54: 装潢艺术设计 | D54: 74 | E54: 42 | F54: 32
C55: 建筑装饰工程技术 | D55: 68 | E55: 49 | F55: 19
C56: 电脑艺术设计 | D56: 13 | E56: 6 | F56: 7
C57: 广告设计与制作 | D57: 75 | E57: 37 | F57: 38
C58: 影视动画 | D58: 26 | E58: 15 | F58: 11
C59: 音乐表演 | D59: 20 | E59: 6 | F59: 14
C60: 小计 | D60: =SUM(D53:D59) -> 347 | E60: =SUM(E53:E59) -> 169 | F60: =SUM(F53:F59) -> 178
A61: 合计 | D61: =D15+D21+D33+D38+D47+D52+D60 -> 3807 | E61: =E15+E21+E33+E38+E47+E52+E60 -> 2384 | F61: =F15+F21+F33+F38+F47+F52+F60 -> 1423
A62: 学校就业处联系人：韦老师 电话：0772-3156667 邮箱：431834152@qq.com

Sheet 汇总
A1: 柳州职业技术学院2018届毕业生分专业统计表
A2: 校区 | B2: 二级学院 | C2: 专业名称 | D2: 毕业生数 | E2: 男生数 | F2: 女生数
A3: 官 塘 校 区 | B3: 机电工程学院 周老师 0772-3156176 1833672778@qq.com | C3: 数控技术 | D3: 151 | E3: 147 | F3: 4
C4: 数控设备应用与维护 | D4: 29 | E4: 27 | F4: 2 | K4: 专业数
C5: 电气自动化技术 | D5: 108 | E5: 103 | F5: 5 | J5: 机电 | K5: 12
C6: 供用电技术 | D6: 20 | E6: 19 | F6: 1 | J6: 财经 | K6: 5
C7: 机电设备维修与管理 | D7: 62 | E7: 60 | F7: 2 | J7: 电子 | K7: 11
C8: 工程机械运用与维护 | D8: 51 | E8: 51 | F8: 0 | J8: 环食 | K8: 4
C9: 机电一体化技术 | D9: 148 | E9: 147 | F9: 1 | J9: 贸旅 | K9: 8
C10: 机械质量管理与检测技术 | D10: 18 | E10: 17 | F10: 1 | J10: 汽车 | K10: 4
C11: 焊接技术及自动化 | D11: 13 | E11: 13 | F11: 0 | J11: 艺术 | K11: 7
C12: 机械设计与制造 | D12: 105 | E12: 100 | F12: 5 | J12: 合计 | K12: 51
C13: 模具设计与制造 | D13: 120 | E13: 111 | F13: 9
C14: 工业机器人技术 | D14: 30 | E14: 29 | F14: 1
C15: 小计 | D15: 855 | E15: 824 | F15: 31
B16: 财经与物流管理学院 覃老师 0772-3155560 719775687@qq.com | C16: 会计电算化 | D16: 251 | E16: 34 | F16: 217
C17: 会计电算化（涉外会计方向） | D17: 56 | E17: 5 | F17: 51
C18: 财务管理 | D18: 184 | E18: 23 | F18: 161
C19: 物流管理 | D19: 181 | E19: 91 | F19: 90
C20: 物流管理（国际物流方向） | D20: 44 | E20: 16 | F20: 28
C21: 小计 | D21: 716 | E21: 169 | F21: 547
A22: 社 湾 校 区 | B22: 电子信息工程学院 龙老师 0772-3155381 3234341582@qq.com | C22: 计算机网络技术 | D22: 68 | E22: 47 | F22: 21
C23: 软件技术 | D23: 91 | E23: 75 | F23: 16
C24: 软件技术（手机软件方向） | D24: 28 | E24: 24 | F24: 4
C25: 计算机应用技术 | D25: 126 | E25: 95 | F25: 31
C26: 通信技术(中兴通信技术) | D26: 113 | E26: 80 | F26: 33
C27: 计算机信息管理(企业IT技术方向) | D27: 41 | E27: 23 | F27: 18
C28: 楼宇智能化工程技术 | D28: 19 | E28: 19 | F28: 0
C29: 应用电子技术 | D29: 39 | E29: 36 | F29: 3
C30: 电子信息工程技术（中兴通讯云计算） | D30: 21 | E30: 16 | F30: 5
C31: 电子信息工程技术（物联网技术方向） | D31: 46 | E31: 36 | F31: 10
C32: 制冷与空调技术 | D32: 51 | E32: 49 | F32: 2
C33: 小计 | D33: 643 | E33: 500 | F33: 143
B34: 环境与食品工程学院 陈老师 0772-3155201 279648208@qq.com | C34: 食品检测及管理 | D34: 77 | E34: 18 | F34: 59
C35: 环境监测与治理技术 | D35: 41 | E35: 12 | F35: 29
C36: 工业分析与检验 | D36: 7 | E36: 3 | F36: 4
C37: 农产品质量检测 | D37: 11 | E37: 5 | F37: 6
C38: 小计 | D38: 136 | E38: 38 | F38: 98
B39: 贸易与旅游管理学院 夏老师 0772-3156327 531930338@qq.com | C39: 市场营销 | D39: 123 | E39: 62 | F39: 61
C40: 商务英语 | D40: 33 | E40: 2 | F40: 31
C41: 旅游管理 | D41: 30 | E41: 5 | F41: 25
C42: 连锁经营管理 | D42: 78 | E42: 26 | F42: 52
C43: 酒店管理 | D43: 92 | E43: 32 | F43: 60
C44: 航空服务 | D44: 68 | E44: 29 | F44: 39
C45: 国际经济与贸易 | D45: 49 | E45: 17 | F45: 32
C46: 电子商务 | D46: 158 | E46: 60 | F46: 98
C47: 小计 | D47: 631 | E47: 233 | F47: 398
B48: 汽车工程学院 曾老师 0772-3156317 229594540@qq.com | C48: 汽车检测与维修技术 | D48: 239 | E48: 238 | F48: 1
C49: 汽车技术服务与营销 | D49: 93 | E49: 68 | F49: 25
C50: 汽车运用技术 | D50: 84 | E50: 83 | F50: 1
C51: 汽车电子技术 | D51: 63 | E51: 62 | F51: 1
C52: 小计 | D52: 479 | E52: 451 | F52: 28
B53: 艺术设计学院 陈老师 0772-3156536 2151966550@qq.com | C53: 服装设计 | D53: 71 | E53: 14 | F53: 57
C54: 装潢艺术设计 | D54: 74 | E54: 42 | F54: 32
C55: 建筑装饰工程技术 | D55: 68 | E55: 49 | F55: 19
C56: 电脑艺术设计 | D56: 13 | E56: 6 | F56: 7
C57: 广告设计与制作 | D57: 75 | E57: 37 | F57: 38
C58: 影视动画 | D58: 26 | E58: 15 | F58: 11
C59: 音乐表演 | D59: 20 | E59: 6 | F59: 14
C60: 小计 | D60: 347 | E60: 169 | F60: 178
A61: 合计 | D61: =D15+D21+D33+D38+D47+D52+D60 -> 3807 | E61: 2384 | F61: 1423
A62: 学校就业处联系人：韦老师 电话：0772-3156667 邮箱：431834152@qq.com

Sheet Sheet2
A1: 各学院专业数

Sheet Sheet3
